[Event "Titled Tuesday Blitz November 07 Late 2023"]
[White "Vasquez Schroeder, Rodrigo"]
[Black "Hakobyan, Aram"]
[WhiteFideId "3400042"]
[BlackFideId "13306677"]
[WhiteElo "2842"]
[BlackElo "3056"]
[Result "0-1"]
[Round "6"]
[TimeControl "180+1"]
[Date "2023.11.07"]
[WhiteClock "0:00:13"]
[BlackClock "0:00:07"]
[Board "9"]

1. e4 {[%clk 0:03:00]}  e5 {[%clk 0:02:59]} 2. Nf3 {[%clk 0:03:01]}  Nc6 {[%clk 0:02:59]} 3. Bb5 {[%clk 0:03:01]}  a6 {[%clk 0:03:00]} 4. Ba4 {[%clk 0:03:01]}  d6 {[%clk 0:03:00]} 5. O-O {[%clk 0:03:00]}  Bd7 {[%clk 0:03:01]} 6. Re1 {[%clk 0:02:57]}  Nge7 {[%clk 0:02:57]} 7. c3 {[%clk 0:02:55]}  Ng6 {[%clk 0:02:57]} 8. d4 {[%clk 0:02:55]}  Be7 {[%clk 0:02:58]} 9. d5 {[%clk 0:02:54]}  Nb8 {[%clk 0:02:57]} 10. c4 {[%clk 0:02:47]}  O-O {[%clk 0:02:56]} 11. Bc2 {[%clk 0:02:46]}  a5 {[%clk 0:02:49]} 12. Nc3 {[%clk 0:02:46]}  Na6 {[%clk 0:02:48]} 13. h3 {[%clk 0:02:44]}  Nc5 {[%clk 0:02:46]} 14. Be3 {[%clk 0:02:43]}  Qe8 {[%clk 0:02:27]} 15. Qd2 {[%clk 0:02:32]}  b6 {[%clk 0:02:23]} 16. b3 {[%clk 0:02:30]}  f5 {[%clk 0:02:19]} 17. exf5 {[%clk 0:02:26]}  Bxf5 {[%clk 0:02:20]} 18. Bxc5 {[%clk 0:01:57]}  bxc5 {[%clk 0:02:15]} 19. Bxf5 {[%clk 0:01:56]}  Rxf5 {[%clk 0:02:16]} 20. Qe3 {[%clk 0:01:57]}  Nf4 {[%clk 0:02:08]} 21. Kh2 {[%clk 0:01:55]}  Qh5 {[%clk 0:01:54]} 22. Ne4 {[%clk 0:01:45]}  Nxh3 {[%clk 0:01:16]} 23. Ng3 {[%clk 0:01:42]}  Nxf2+ {[%clk 0:01:14]} 24. Nxh5 {[%clk 0:01:14]}  Ng4+ {[%clk 0:01:13]} 25. Kg1 {[%clk 0:01:14]}  Nxe3 {[%clk 0:01:14]} 26. Ng3 {[%clk 0:01:15]}  Rxf3 {[%clk 0:01:15]} 27. gxf3 {[%clk 0:01:14]}  Nc2 {[%clk 0:01:15]} 28. Ne4 {[%clk 0:01:14]}  g5 {[%clk 0:01:06]} 29. Kg2 {[%clk 0:01:06]}  Kg7 {[%clk 0:01:02]} 30. Rac1 {[%clk 0:00:58]}  Nxe1+ {[%clk 0:01:02]} 31. Rxe1 {[%clk 0:00:59]}  h5 {[%clk 0:01:02]} 32. Nc3 {[%clk 0:00:58]}  Rf8 {[%clk 0:00:57]} 33. Nb5 {[%clk 0:00:56]}  Bd8 {[%clk 0:00:58]} 34. Na7 {[%clk 0:00:54]}  Kg6 {[%clk 0:00:37]} 35. Nc6 {[%clk 0:00:53]}  g4 {[%clk 0:00:38]} 36. fxg4 {[%clk 0:00:53]}  hxg4 {[%clk 0:00:39]} 37. Rf1 {[%clk 0:00:43]}  Rh8 {[%clk 0:00:31]} 38. Nxa5 {[%clk 0:00:38]}  Bg5 {[%clk 0:00:17]} 39. Nc6 {[%clk 0:00:38]}  Bf4 {[%clk 0:00:16]} 40. Rh1 {[%clk 0:00:36]}  Rxh1 {[%clk 0:00:10]} 41. Kxh1 {[%clk 0:00:37]}  e4 {[%clk 0:00:11]} 42. Kg2 {[%clk 0:00:32]}  e3 {[%clk 0:00:06]} 43. a4 {[%clk 0:00:28]}  Bg5 {[%clk 0:00:04]} 44. a5 {[%clk 0:00:27]}  Bh4 {[%clk 0:00:04]} 45. Kf1 {[%clk 0:00:27]}  g3 {[%clk 0:00:04]} 46. a6 {[%clk 0:00:16]}  g2+ {[%clk 0:00:04]} 47. Kxg2 {[%clk 0:00:16]}  e2 {[%clk 0:00:05]} 48. a7 {[%clk 0:00:16]}  e1=Q {[%clk 0:00:05]} 49. a8=Q {[%clk 0:00:17]}  Qf2+ {[%clk 0:00:04]} 50. Kh1 {[%clk 0:00:17]}  Qf3+ {[%clk 0:00:04]} 51. Kg1 {[%clk 0:00:15]}  Bf2+ {[%clk 0:00:05]} 52. Kf1 {[%clk 0:00:13]}  Bg3+ {[%clk 0:00:05]} 53. Kg1 {[%clk 0:00:13]}  Qf2+ {[%clk 0:00:06]} 54. Kh1 {[%clk 0:00:13]}  Qh2# {[%clk 0:00:07]} 0-1


[Site "https://www.chess.com"]

[Event "Titled Tuesday Blitz November 07 Late 2023"]
[White "Szpar, Milosz"]
[Black "Xiong, Jeffery"]
[WhiteFideId "1184989"]
[BlackFideId "2047640"]
[WhiteElo "2811"]
[BlackElo "3020"]
[Result "1-0"]
[Round "6"]
[TimeControl "180+1"]
[Date "2023.11.07"]
[WhiteClock "0:00:04"]
[BlackClock "0:01:13"]
[Board "10"]

1. Nf3 {[%clk 0:03:00]}  c5 {[%clk 0:02:59]} 2. c4 {[%clk 0:03:00]}  Nf6 {[%clk 0:02:59]} 3. Nc3 {[%clk 0:02:59]}  d5 {[%clk 0:02:59]} 4. cxd5 {[%clk 0:02:59]}  Nxd5 {[%clk 0:03:00]} 5. e4 {[%clk 0:02:59]}  Nb4 {[%clk 0:02:59]} 6. Bc4 {[%clk 0:02:58]}  Nd3+ {[%clk 0:02:56]} 7. Ke2 {[%clk 0:02:53]}  Nf4+ {[%clk 0:02:56]} 8. Kf1 {[%clk 0:02:54]}  Ne6 {[%clk 0:02:57]} 9. Ne2 {[%clk 0:02:53]}  Nc6 {[%clk 0:02:56]} 10. h4 {[%clk 0:02:53]}  h5 {[%clk 0:02:55]} 11. b4 {[%clk 0:02:52]}  Nxb4 {[%clk 0:02:49]} 12. Bb2 {[%clk 0:02:34]}  Nc6 {[%clk 0:02:48]} 13. Ng5 {[%clk 0:02:12]}  Nxg5 {[%clk 0:02:38]} 14. hxg5 {[%clk 0:02:13]}  e5 {[%clk 0:02:38]} 15. g6 {[%clk 0:02:05]}  fxg6 {[%clk 0:02:37]} 16. Nc3 {[%clk 0:01:56]}  Bd6 {[%clk 0:02:35]} 17. Qf3 {[%clk 0:01:53]}  Rf8 {[%clk 0:02:34]} 18. Qg3 {[%clk 0:01:52]}  Bg4 {[%clk 0:02:19]} 19. f3 {[%clk 0:01:53]}  Nd4 {[%clk 0:02:19]} 20. Kg1 {[%clk 0:01:45]}  Nxf3+ {[%clk 0:02:19]} 21. gxf3 {[%clk 0:01:43]}  Rxf3 {[%clk 0:02:20]} 22. Qg2 {[%clk 0:01:39]}  Qg5 {[%clk 0:02:15]} 23. Be6 {[%clk 0:01:32]}  Qf4 {[%clk 0:02:09]} 24. Nd5 {[%clk 0:01:15]}  Qxe4 {[%clk 0:02:09]} 25. Bxg4 {[%clk 0:01:15]}  hxg4 {[%clk 0:02:10]} 26. Rh8+ {[%clk 0:01:14]}  Kf7 {[%clk 0:02:09]} 27. Rxa8 {[%clk 0:01:09]}  Qxd5 {[%clk 0:02:10]} 28. Qxg4 {[%clk 0:01:00]}  Rf4 {[%clk 0:02:10]} 29. Qd7+ {[%clk 0:00:57]}  Kf6 {[%clk 0:02:10]} 30. Rf8+ {[%clk 0:00:55]}  Kg5 {[%clk 0:02:09]} 31. Rxf4 {[%clk 0:00:52]}  exf4 {[%clk 0:02:09]} 32. Qxg7 {[%clk 0:00:26]}  Qd3 {[%clk 0:02:06]} 33. Qxb7 {[%clk 0:00:12]}  c4 {[%clk 0:01:58]} 34. Qg2+ {[%clk 0:00:10]}  Kf5 {[%clk 0:01:58]} 35. Re1 {[%clk 0:00:06]}  g5 {[%clk 0:01:57]} 36. Bc3 {[%clk 0:00:06]}  g4 {[%clk 0:01:57]} 37. Kh1 {[%clk 0:00:04]}  f3 {[%clk 0:01:54]} 38. Qf2 {[%clk 0:00:04]}  g3 {[%clk 0:01:54]} 39. Qd4 {[%clk 0:00:03]}  Qxd4 {[%clk 0:01:35]} 40. Bxd4 {[%clk 0:00:02]}  Kg4 {[%clk 0:01:36]} 41. Re6 {[%clk 0:00:02]}  Bf4 {[%clk 0:01:36]} 42. Be3 {[%clk 0:00:02]}  Bc7 {[%clk 0:01:30]} 43. Kg1 {[%clk 0:00:02]}  Kh3 {[%clk 0:01:24]} 44. Rh6+ {[%clk 0:00:02]}  Kg4 {[%clk 0:01:24]} 45. Rc6 {[%clk 0:00:03]}  Be5 {[%clk 0:01:24]} 46. Rxc4+ {[%clk 0:00:03]}  Kh3 {[%clk 0:01:25]} 47. Rc5 {[%clk 0:00:03]}  Bd6 {[%clk 0:01:24]} 48. Rd5 {[%clk 0:00:03]}  Bb8 {[%clk 0:01:24]} 49. Rh5+ {[%clk 0:00:03]}  Kg4 {[%clk 0:01:24]} 50. Rh8 {[%clk 0:00:04]}  Be5 {[%clk 0:01:24]} 51. Rh7 {[%clk 0:00:04]}  a6 {[%clk 0:01:24]} 52. a4 {[%clk 0:00:05]}  Bb8 {[%clk 0:01:21]} 53. Rh8 {[%clk 0:00:05]}  Be5 {[%clk 0:01:21]} 54. Rh6 {[%clk 0:00:05]}  a5 {[%clk 0:01:20]} 55. Rh7 {[%clk 0:00:05]}  Bd6 {[%clk 0:01:20]} 56. Kf1 {[%clk 0:00:03]}  g2+ {[%clk 0:01:20]} 57. Kg1 {[%clk 0:00:04]}  Bg3 {[%clk 0:01:19]} 58. Bf2 {[%clk 0:00:04]}  Bf4 {[%clk 0:01:19]} 59. Rh4+ {[%clk 0:00:04]}  Kg5 {[%clk 0:01:19]} 60. Rxf4 {[%clk 0:00:04]}  Kxf4 {[%clk 0:01:20]} 61. d4 {[%clk 0:00:04]}  Ke4 {[%clk 0:01:21]} 62. Kh2 {[%clk 0:00:04]}  Kf4 {[%clk 0:01:13]} 63. Kh3 {[%clk 0:00:04]} 1-0


[Site "https://www.chess.com"]

[Event "Titled Tuesday Blitz November 07 Late 2023"]
[White "Ghasi, Ameet K"]
[Black "Hong, Andrew"]
[WhiteFideId "409200"]
[BlackFideId "2099438"]
[WhiteElo "2809"]
[BlackElo "2979"]
[Result "0-1"]
[Round "6"]
[TimeControl "180+1"]
[Date "2023.11.07"]
[WhiteClock "0:00:00"]
[BlackClock "0:00:10"]
[Board "12"]

1. b3 {[%clk 0:03:00]}  d5 {[%clk 0:02:57]} 2. Bb2 {[%clk 0:02:59]}  Bg4 {[%clk 0:02:58]} 3. h3 {[%clk 0:02:57]}  Bh5 {[%clk 0:02:57]} 4. d3 {[%clk 0:02:56]}  Nd7 {[%clk 0:02:53]} 5. Nd2 {[%clk 0:02:54]}  e5 {[%clk 0:02:53]} 6. Ngf3 {[%clk 0:02:53]}  Bd6 {[%clk 0:02:50]} 7. e3 {[%clk 0:02:51]}  Ngf6 {[%clk 0:02:48]} 8. g4 {[%clk 0:02:47]}  Bg6 {[%clk 0:02:48]} 9. Nh4 {[%clk 0:02:45]}  c6 {[%clk 0:02:45]} 10. Bg2 {[%clk 0:02:45]}  a5 {[%clk 0:02:41]} 11. a3 {[%clk 0:02:44]}  Qe7 {[%clk 0:02:41]} 12. O-O {[%clk 0:02:41]}  O-O {[%clk 0:02:38]} 13. Qe2 {[%clk 0:02:36]}  Ne8 {[%clk 0:02:36]} 14. Nf5 {[%clk 0:02:22]}  Bxf5 {[%clk 0:02:35]} 15. gxf5 {[%clk 0:02:23]}  Bc5 {[%clk 0:02:14]} 16. c4 {[%clk 0:02:20]}  Ndf6 {[%clk 0:02:09]} 17. cxd5 {[%clk 0:02:07]}  cxd5 {[%clk 0:02:10]} 18. Nf3 {[%clk 0:02:05]}  Bd6 {[%clk 0:01:58]} 19. Nh2 {[%clk 0:02:04]}  Qd7 {[%clk 0:01:53]} 20. e4 {[%clk 0:02:02]}  Qb5 {[%clk 0:01:42]} 21. Ng4 {[%clk 0:01:56]}  dxe4 {[%clk 0:01:39]} 22. Bxe4 {[%clk 0:01:52]}  h5 {[%clk 0:01:13]} 23. Nxf6+ {[%clk 0:01:35]}  Nxf6 {[%clk 0:01:14]} 24. Rab1 {[%clk 0:01:34]}  Rac8 {[%clk 0:01:09]} 25. Bg2 {[%clk 0:01:27]}  Qd7 {[%clk 0:01:07]} 26. Qf3 {[%clk 0:01:25]}  Rc2 {[%clk 0:01:05]} 27. Rfe1 {[%clk 0:01:23]}  Bc5 {[%clk 0:01:00]} 28. Kh1 {[%clk 0:00:33]}  Rxf2 {[%clk 0:00:53]} 29. Qxb7 {[%clk 0:00:32]}  Qxd3 {[%clk 0:00:51]} 30. Bxe5 {[%clk 0:00:27]}  Bd6 {[%clk 0:00:30]} 31. Rbd1 {[%clk 0:00:23]}  Rd2 {[%clk 0:00:29]} 32. Rc1 {[%clk 0:00:10]}  Bxe5 {[%clk 0:00:22]} 33. Rxe5 {[%clk 0:00:11]}  Qg3 {[%clk 0:00:19]} 34. Rce1 {[%clk 0:00:06]}  Nd5 {[%clk 0:00:09]} 35. R5e2 {[%clk 0:00:01]}  Rxe2 {[%clk 0:00:09]} 36. Rxe2 {[%clk 0:00:02]}  Nf4 {[%clk 0:00:10]} 37. Rd2 {[%clk 0:00:02]}  Qe1+ {[%clk 0:00:10]} 38. Kh2 {[%clk 0:00:00]}  Qxd2 {[%clk 0:00:10]} 0-1


[Site "https://www.chess.com"]

[Event "Titled Tuesday Blitz November 07 Late 2023"]
[White "Makhnev, Denis"]
[Black "Krzyzanowski, Marcin"]
[WhiteFideId "13707647"]
[BlackFideId "1132199"]
[WhiteElo "2962"]
[BlackElo "2764"]
[Result "0-1"]
[Round "6"]
[TimeControl "180+1"]
[Date "2023.11.07"]
[WhiteClock "0:00:00"]
[BlackClock "0:00:34"]
[Board "14"]

1. f4 {[%clk 0:03:00]}  g6 {[%clk 0:02:57]} 2. Nf3 {[%clk 0:03:00]}  Bg7 {[%clk 0:02:57]} 3. g3 {[%clk 0:02:53]}  d5 {[%clk 0:02:56]} 4. Bg2 {[%clk 0:02:53]}  Nc6 {[%clk 0:02:57]} 5. O-O {[%clk 0:02:54]}  e5 {[%clk 0:02:56]} 6. fxe5 {[%clk 0:02:54]}  Nxe5 {[%clk 0:02:57]} 7. Nxe5 {[%clk 0:02:54]}  Bxe5 {[%clk 0:02:58]} 8. d4 {[%clk 0:02:54]}  Bg7 {[%clk 0:02:57]} 9. Nc3 {[%clk 0:02:54]}  c6 {[%clk 0:02:50]} 10. e4 {[%clk 0:02:55]}  dxe4 {[%clk 0:02:38]} 11. Nxe4 {[%clk 0:02:54]}  Bf5 {[%clk 0:01:59]} 12. c3 {[%clk 0:02:50]}  Ne7 {[%clk 0:01:52]} 13. Qb3 {[%clk 0:02:18]}  O-O {[%clk 0:01:36]} 14. Kh1 {[%clk 0:01:21]}  b6 {[%clk 0:01:20]} 15. Bg5 {[%clk 0:01:19]}  h6 {[%clk 0:01:13]} 16. Bf4 {[%clk 0:01:16]}  Be6 {[%clk 0:01:05]} 17. Qa3 {[%clk 0:01:15]}  Bd5 {[%clk 0:01:04]} 18. Rae1 {[%clk 0:01:12]}  Nf5 {[%clk 0:01:04]} 19. Be5 {[%clk 0:00:36]}  Re8 {[%clk 0:01:04]} 20. Bxg7 {[%clk 0:00:36]}  Kxg7 {[%clk 0:01:05]} 21. Kg1 {[%clk 0:00:35]}  a5 {[%clk 0:01:00]} 22. b3 {[%clk 0:00:26]}  Ra7 {[%clk 0:00:59]} 23. Re2 {[%clk 0:00:14]}  Rae7 {[%clk 0:00:55]} 24. Rfe1 {[%clk 0:00:15]}  Bxe4 {[%clk 0:00:39]} 25. Bxe4 {[%clk 0:00:12]}  Nxd4 {[%clk 0:00:39]} 26. cxd4 {[%clk 0:00:04]}  Qxd4+ {[%clk 0:00:40]} 27. Kg2 {[%clk 0:00:05]}  Rxe4 {[%clk 0:00:41]} 28. Rxe4 {[%clk 0:00:05]}  Rxe4 {[%clk 0:00:42]} 29. Rxe4 {[%clk 0:00:05]}  Qxe4+ {[%clk 0:00:42]} 30. Kg1 {[%clk 0:00:06]}  Qe1+ {[%clk 0:00:42]} 31. Kg2 {[%clk 0:00:07]}  Qe2+ {[%clk 0:00:42]} 32. Kg1 {[%clk 0:00:07]}  c5 {[%clk 0:00:41]} 33. Qa4 {[%clk 0:00:07]}  Qd1+ {[%clk 0:00:40]} 34. Kg2 {[%clk 0:00:07]}  Qd2+ {[%clk 0:00:39]} 35. Kh3 {[%clk 0:00:08]}  Qd3 {[%clk 0:00:34]} 36. Qc6 {[%clk 0:00:07]}  Qf1+ {[%clk 0:00:34]} 37. Kh4 {[%clk 0:00:03]}  Qf6+ {[%clk 0:00:33]} 38. Qxf6+ {[%clk 0:00:00]}  Kxf6 {[%clk 0:00:34]} 0-1


[Site "https://www.chess.com"]

[Event "Titled Tuesday Blitz November 07 Late 2023"]
[White "Tatarinov, Dmitry"]
[Black "Rostovtsev, Dmitry"]
[WhiteFideId "24160067"]
[BlackFideId "34278320"]
[WhiteElo "2732"]
[BlackElo "2935"]
[Result "0-1"]
[Round "6"]
[TimeControl "180+1"]
[Date "2023.11.07"]
[WhiteClock "0:01:36"]
[BlackClock "0:01:49"]
[Board "18"]

1. c4 {[%clk 0:02:53]}  e6 {[%clk 0:02:51]} 2. Nf3 {[%clk 0:02:51]}  Nf6 {[%clk 0:02:43]} 3. d4 {[%clk 0:02:50]}  d5 {[%clk 0:02:40]} 4. Nc3 {[%clk 0:02:50]}  h6 {[%clk 0:02:38]} 5. Bf4 {[%clk 0:02:45]}  Bd6 {[%clk 0:02:37]} 6. Bg3 {[%clk 0:02:41]}  Bxg3 {[%clk 0:02:35]} 7. hxg3 {[%clk 0:02:41]}  O-O {[%clk 0:02:34]} 8. e3 {[%clk 0:02:41]}  Nbd7 {[%clk 0:02:32]} 9. Rc1 {[%clk 0:02:39]}  dxc4 {[%clk 0:02:27]} 10. Bxc4 {[%clk 0:02:39]}  c5 {[%clk 0:02:28]} 11. O-O {[%clk 0:02:38]}  cxd4 {[%clk 0:02:26]} 12. Qxd4 {[%clk 0:02:37]}  Nb6 {[%clk 0:02:27]} 13. Be2 {[%clk 0:02:35]}  Qxd4 {[%clk 0:02:26]} 14. Nxd4 {[%clk 0:02:35]}  Bd7 {[%clk 0:02:27]} 15. Bf3 {[%clk 0:02:33]}  Rab8 {[%clk 0:02:27]} 16. Rfd1 {[%clk 0:02:30]}  Rfd8 {[%clk 0:02:26]} 17. Ndb5 {[%clk 0:02:23]}  Bxb5 {[%clk 0:02:22]} 18. Nxb5 {[%clk 0:02:24]}  Rxd1+ {[%clk 0:02:20]} 19. Rxd1 {[%clk 0:02:23]}  Kf8 {[%clk 0:02:19]} 20. Nxa7 {[%clk 0:02:20]}  Ra8 {[%clk 0:02:17]} 21. Nb5 {[%clk 0:02:13]}  Rxa2 {[%clk 0:02:16]} 22. Rd8+ {[%clk 0:02:13]}  Ke7 {[%clk 0:02:13]} 23. Rb8 {[%clk 0:02:13]}  Rxb2 {[%clk 0:02:09]} 24. Rxb7+ {[%clk 0:02:08]}  Nbd7 {[%clk 0:02:09]} 25. g4 {[%clk 0:01:54]}  g5 {[%clk 0:02:06]} 26. Nd4 {[%clk 0:01:44]}  Rxb7 {[%clk 0:02:02]} 27. Bxb7 {[%clk 0:01:45]}  Nxg4 {[%clk 0:02:03]} 28. Bf3 {[%clk 0:01:45]}  Ngf6 {[%clk 0:01:59]} 29. Bd1 {[%clk 0:01:44]}  Ne5 {[%clk 0:01:59]} 30. Be2 {[%clk 0:01:43]}  Kd6 {[%clk 0:01:56]} 31. Bd1 {[%clk 0:01:43]}  g4 {[%clk 0:01:56]} 32. Ba4 {[%clk 0:01:41]}  h5 {[%clk 0:01:56]} 33. g3 {[%clk 0:01:39]}  Ne4 {[%clk 0:01:54]} 34. Bc2 {[%clk 0:01:38]}  Nd2 {[%clk 0:01:54]} 35. Kg2 {[%clk 0:01:37]}  Ndf3 {[%clk 0:01:50]} 36. Ne2 {[%clk 0:01:36]}  Ne1+ {[%clk 0:01:49]} 0-1


[Site "https://www.chess.com"]

[Event "Titled Tuesday Blitz November 07 Late 2023"]
[White "Giroyan, Gary"]
[Black "Bortnyk, Mykola"]
[WhiteFideId "680281"]
[BlackFideId "14120836"]
[WhiteElo "2690"]
[BlackElo "2928"]
[Result "0-1"]
[Round "6"]
[TimeControl "180+1"]
[Date "2023.11.07"]
[WhiteClock "0:00:15"]
[BlackClock "0:01:18"]
[Board "19"]

1. d4 {[%clk 0:03:00]}  f5 {[%clk 0:02:59]} 2. Nf3 {[%clk 0:03:00]}  Nf6 {[%clk 0:02:59]} 3. g3 {[%clk 0:03:00]}  e6 {[%clk 0:02:59]} 4. Bg2 {[%clk 0:03:01]}  Be7 {[%clk 0:02:57]} 5. O-O {[%clk 0:03:01]}  O-O {[%clk 0:02:58]} 6. c4 {[%clk 0:03:01]}  d6 {[%clk 0:02:57]} 7. Nc3 {[%clk 0:03:01]}  Kh8 {[%clk 0:02:55]} 8. Qc2 {[%clk 0:02:53]}  Nc6 {[%clk 0:02:54]} 9. e4 {[%clk 0:02:33]}  e5 {[%clk 0:02:50]} 10. dxe5 {[%clk 0:02:26]}  dxe5 {[%clk 0:02:47]} 11. Rd1 {[%clk 0:02:25]}  Qe8 {[%clk 0:02:26]} 12. Nd5 {[%clk 0:01:56]}  fxe4 {[%clk 0:02:18]} 13. Nxf6 {[%clk 0:01:35]}  Bxf6 {[%clk 0:02:06]} 14. Qxe4 {[%clk 0:01:35]}  Qh5 {[%clk 0:02:05]} 15. Be3 {[%clk 0:01:11]}  Bf5 {[%clk 0:01:57]} 16. Qd5 {[%clk 0:01:11]}  Bg4 {[%clk 0:01:47]} 17. Re1 {[%clk 0:00:39]}  Rad8 {[%clk 0:01:45]} 18. Qe4 {[%clk 0:00:35]}  Bf5 {[%clk 0:01:44]} 19. g4 {[%clk 0:00:36]}  Bxg4 {[%clk 0:01:42]} 20. Nd2 {[%clk 0:00:31]}  Nd4 {[%clk 0:01:30]} 21. Rac1 {[%clk 0:00:23]}  c6 {[%clk 0:01:19]} 22. Kh1 {[%clk 0:00:15]}  Bf5 {[%clk 0:01:18]} 0-1


[Site "https://www.chess.com"]

[Event "Titled Tuesday Blitz November 07 Late 2023"]
[White "Aarav Dengla"]
[Black "Melkumyan, Hrant"]
[WhiteFideId "45059756"]
[BlackFideId "13302485"]
[WhiteElo "2656"]
[BlackElo "2919"]
[Result "0-1"]
[Round "6"]
[TimeControl "180+1"]
[Date "2023.11.07"]
[WhiteClock "0:00:55"]
[BlackClock "0:01:00"]
[Board "21"]

1. e4 {[%clk 0:03:00]}  c6 {[%clk 0:02:59]} 2. d4 {[%clk 0:02:59]}  d5 {[%clk 0:03:00]} 3. exd5 {[%clk 0:02:59]}  cxd5 {[%clk 0:03:00]} 4. Bd3 {[%clk 0:03:00]}  Nf6 {[%clk 0:02:59]} 5. h3 {[%clk 0:02:59]}  Nc6 {[%clk 0:02:59]} 6. c3 {[%clk 0:02:59]}  g6 {[%clk 0:02:57]} 7. Qc2 {[%clk 0:02:59]}  Bg7 {[%clk 0:02:55]} 8. Bf4 {[%clk 0:02:58]}  O-O {[%clk 0:02:52]} 9. Nf3 {[%clk 0:02:57]}  Bd7 {[%clk 0:02:40]} 10. Nbd2 {[%clk 0:02:56]}  Rc8 {[%clk 0:02:39]} 11. Qb1 {[%clk 0:02:56]}  a6 {[%clk 0:02:35]} 12. O-O {[%clk 0:02:54]}  b5 {[%clk 0:02:32]} 13. a4 {[%clk 0:02:54]}  Qb6 {[%clk 0:02:21]} 14. axb5 {[%clk 0:02:46]}  axb5 {[%clk 0:02:21]} 15. Re1 {[%clk 0:02:46]}  Ra8 {[%clk 0:02:17]} 16. Rxa8 {[%clk 0:02:44]}  Rxa8 {[%clk 0:02:14]} 17. Nb3 {[%clk 0:02:45]}  b4 {[%clk 0:02:05]} 18. Nc5 {[%clk 0:02:43]}  Be8 {[%clk 0:02:03]} 19. Qc2 {[%clk 0:02:40]}  e6 {[%clk 0:01:58]} 20. Ne5 {[%clk 0:02:32]}  Nxe5 {[%clk 0:01:55]} 21. Bxe5 {[%clk 0:02:32]}  Nd7 {[%clk 0:01:46]} 22. Nxd7 {[%clk 0:02:18]}  Bxd7 {[%clk 0:01:47]} 23. c4 {[%clk 0:02:19]}  Bxe5 {[%clk 0:01:28]} 24. c5 {[%clk 0:02:16]}  b3 {[%clk 0:01:24]} 25. Qc1 {[%clk 0:01:55]}  Qb4 {[%clk 0:01:18]} 26. c6 {[%clk 0:01:34]}  Bxc6 {[%clk 0:01:18]} 27. dxe5 {[%clk 0:01:27]}  Bb5 {[%clk 0:01:12]} 28. Bxb5 {[%clk 0:01:15]}  Qxb5 {[%clk 0:01:13]} 29. Qc3 {[%clk 0:01:16]}  Rb8 {[%clk 0:01:03]} 30. Re3 {[%clk 0:01:10]}  Qb4 {[%clk 0:01:03]} 31. Qc7 {[%clk 0:01:09]}  Qb6 {[%clk 0:01:02]} 32. Qd7 {[%clk 0:00:59]}  Qd4 {[%clk 0:01:00]} 33. Rf3 {[%clk 0:00:55]}  Rf8 {[%clk 0:01:00]} 0-1


[Site "https://www.chess.com"]

[Event "Titled Tuesday Blitz November 07 Late 2023"]
[White "Bachmann, Axel"]
[Black "Golubev, Mikhail"]
[WhiteFideId "3700488"]
[BlackFideId "14100983"]
[WhiteElo "2882"]
[BlackElo "2642"]
[Result "1-0"]
[Round "6"]
[TimeControl "180+1"]
[Date "2023.11.07"]
[WhiteClock "0:00:03"]
[BlackClock "0:00:00"]
[Board "23"]

1. e4 {[%clk 0:02:57]}  c5 {[%clk 0:02:59]} 2. Nf3 {[%clk 0:02:57]}  d6 {[%clk 0:02:59]} 3. Bb5+ {[%clk 0:02:57]}  Bd7 {[%clk 0:02:59]} 4. c4 {[%clk 0:02:57]}  Nc6 {[%clk 0:02:57]} 5. Nc3 {[%clk 0:02:56]}  g6 {[%clk 0:02:55]} 6. d4 {[%clk 0:02:55]}  cxd4 {[%clk 0:02:53]} 7. Nxd4 {[%clk 0:02:56]}  Bg7 {[%clk 0:02:53]} 8. Be3 {[%clk 0:02:56]}  Nf6 {[%clk 0:02:51]} 9. h3 {[%clk 0:02:50]}  O-O {[%clk 0:02:50]} 10. Bxc6 {[%clk 0:02:48]}  bxc6 {[%clk 0:02:48]} 11. c5 {[%clk 0:02:49]}  d5 {[%clk 0:02:35]} 12. e5 {[%clk 0:02:44]}  Ne4 {[%clk 0:02:35]} 13. Nf3 {[%clk 0:02:08]}  Qa5 {[%clk 0:02:27]} 14. Qa4 {[%clk 0:02:06]}  Qxa4 {[%clk 0:02:19]} 15. Nxa4 {[%clk 0:02:07]}  f6 {[%clk 0:02:19]} 16. Bd4 {[%clk 0:02:04]}  fxe5 {[%clk 0:02:17]} 17. Bxe5 {[%clk 0:01:56]}  Rf5 {[%clk 0:01:55]} 18. Bxg7 {[%clk 0:01:53]}  Kxg7 {[%clk 0:01:56]} 19. O-O {[%clk 0:01:42]}  Raf8 {[%clk 0:01:54]} 20. Rae1 {[%clk 0:01:31]}  Bc8 {[%clk 0:01:42]} 21. Nd4 {[%clk 0:00:46]}  R5f6 {[%clk 0:01:31]} 22. f3 {[%clk 0:00:46]}  Ba6 {[%clk 0:01:29]} 23. Rf2 {[%clk 0:00:47]}  Nxf2 {[%clk 0:01:26]} 24. Rxe7+ {[%clk 0:00:47]}  R8f7 {[%clk 0:01:19]} 25. Rxf7+ {[%clk 0:00:48]}  Kxf7 {[%clk 0:01:17]} 26. Kxf2 {[%clk 0:00:48]}  Ke7 {[%clk 0:01:07]} 27. b4 {[%clk 0:00:47]}  Kd7 {[%clk 0:01:04]} 28. Nc3 {[%clk 0:00:47]}  Bc4 {[%clk 0:01:01]} 29. a3 {[%clk 0:00:39]}  Rf8 {[%clk 0:00:59]} 30. Ke3 {[%clk 0:00:33]}  a5 {[%clk 0:00:59]} 31. Na4 {[%clk 0:00:28]}  axb4 {[%clk 0:00:51]} 32. Nb6+ {[%clk 0:00:26]}  Kc7 {[%clk 0:00:45]} 33. axb4 {[%clk 0:00:27]}  Re8+ {[%clk 0:00:42]} 34. Kd2 {[%clk 0:00:27]}  g5 {[%clk 0:00:39]} 35. Nxc4 {[%clk 0:00:24]}  dxc4 {[%clk 0:00:38]} 36. Kc3 {[%clk 0:00:25]}  Re1 {[%clk 0:00:34]} 37. Kxc4 {[%clk 0:00:25]}  Rg1 {[%clk 0:00:33]} 38. g4 {[%clk 0:00:26]}  Rg3 {[%clk 0:00:30]} 39. Ne6+ {[%clk 0:00:26]}  Kb7 {[%clk 0:00:24]} 40. Nd8+ {[%clk 0:00:24]}  Kc7 {[%clk 0:00:23]} 41. Ne6+ {[%clk 0:00:24]}  Kb7 {[%clk 0:00:20]} 42. Nxg5 {[%clk 0:00:22]}  h6 {[%clk 0:00:20]} 43. Nf7 {[%clk 0:00:22]}  Rxh3 {[%clk 0:00:19]} 44. Ne5 {[%clk 0:00:22]}  h5 {[%clk 0:00:17]} 45. gxh5 {[%clk 0:00:18]}  Rxh5 {[%clk 0:00:16]} 46. f4 {[%clk 0:00:14]}  Rf5 {[%clk 0:00:16]} 47. Nd3 {[%clk 0:00:13]}  Ka6 {[%clk 0:00:14]} 48. Kd4 {[%clk 0:00:11]}  Kb5 {[%clk 0:00:14]} 49. Ke4 {[%clk 0:00:12]}  Rf8 {[%clk 0:00:13]} 50. f5 {[%clk 0:00:13]}  Kc4 {[%clk 0:00:11]} 51. Ne5+ {[%clk 0:00:03]}  Kxb4 {[%clk 0:00:10]} 52. Kf4 {[%clk 0:00:04]}  Kb5 {[%clk 0:00:03]} 53. Kg5 {[%clk 0:00:03]}  Rg8+ {[%clk 0:00:02]} 54. Kf6 {[%clk 0:00:03]}  Kxc5 {[%clk 0:00:00]} 55. Ke7 {[%clk 0:00:03]} 1-0


[Site "https://www.chess.com"]